fUSD/lending_fUSD_20250123
["ID","MTS","AMOUNT","RATE_DAILY","PERIOD"]
[350156060,1737659456077,-500.0,0.0001726,2]
[350156061,1737659456087,-156.85,0.0001726,2]
[350156062,1737659456096,-500.0,0.0001726,2]
[350156063,1737659456106,-500.0,0.0001726,2]
[350156064,1737659456115,-500.0,0.0001726,2]
[350156065,1737659456125,-413.75563665,0.0001726,2]
[350156066,1737659456135,-500.0,0.0001726,2]
[350156067,1737659456144,-500.0,0.0001726,2]
[350156068,1737659456153,-500.0,0.0001726,2]
[350156069,1737659456162,-500.0,0.0001726,2]
[350156070,1737659456172,-500.0,0.0001726,2]
[350156071,1737659456181,-151.0,0.0001726,2]
[350156072,1737659456191,-500.0,0.0001726,2]
[350156073,1737659456200,-370.249633,0.0001726,2]
[350156074,1737659456209,-500.0,0.0001726,2]
[350156075,1737659456218,-151.0,0.0001726,2]
[350156076,1737659456228,-500.0,0.0001726,2]
[350156077,1737659456237,-283.736017,0.0001726,2]
[350156078,1737659456246,-500.0,0.0001726,2]
[350156079,1737659456255,-418.55048248,0.0001726,2]
[350156080,1737659456268,-297.54355046,0.0001726,2]
[350156081,1737659456277,-500.0,0.0001726,2]
[350156082,1737659456287,-500.0,0.0001726,2]
[350156083,1737659456296,-151.0,0.0001726,2]
[350156084,1737659456306,-500.0,0.0001726,2]
[350156085,1737659456315,-500.0,0.0001726,2]
[350156086,1737659456324,-151.0,0.0001726,2]
[350156087,1737659456335,-500.0,0.0001726,2]
[350156088,1737659456349,-634.041024,0.0001726,2]
[350156089,1737659456359,-500.0,0.0001726,2]
[350156090,1737659456368,-634.041024,0.0001726,2]
[350156091,1737659456378,-160.344778,0.0001726,2]
[350156092,1737659456388,-500.0,0.0001726,2]
[350156093,1737659456398,-160.344778,0.0001726,2]
[350156094,1737659456407,-500.0,0.0001726,2]
[350156095,1737659456418,-500.0,0.0001726,2]
[350156096,1737659456427,-500.0,0.0001726,2]
[350156097,1737659456436,-500.0,0.0001726,2]
[350156098,1737659456445,-500.0,0.0001726,2]
[350156099,1737659456455,-636.08030432,0.0001726,2]
[350156100,1737659456464,-500.0,0.0001726,2]
[350156101,1737659456475,-500.0,0.0001726,2]
[350156102,1737659456486,-500.0,0.0001726,2]
[350156103,1737659456496,-500.0,0.0001726,2]
[350156104,1737659456505,-343.5544653,0.0001726,2]
[350156105,1737659456517,-500.0,0.0001726,2]
[350156106,1737659456527,-500.0,0.0001726,2]
[350156107,1737659456536,-500.0,0.0001726,2]
[350156108,1737659456546,-500.0,0.0001726,2]
[350156109,1737659456555,-500.0,0.0001726,2]
[350156110,1737659456565,-500.0,0.0001726,2]
[350156111,1737659456576,-500.0,0.0001726,2]
[350156112,1737659456586,-500.0,0.0001726,2]
[350156113,1737659456596,-500.0,0.0001726,2]
[350156114,1737659456605,-151.0,0.0001726,2]
[350156115,1737659456615,-500.0,0.0001726,2]
[350156116,1737659456625,-500.0,0.0001726,2]
[350156117,1737659456634,-151.0,0.0001726,2]
[350156118,1737659456644,-500.0,0.0001726,2]
[350156119,1737659456653,-500.0,0.0001726,2]
[350156120,1737659456663,-500.0,0.0001726,2]
[350156121,1737659456672,-500.0,0.0001726,2]
[350156122,1737659456681,-500.0,0.0001726,2]
[350156123,1737659456692,-152.29474784,0.0001726,2]
[350156124,1737659456702,-610.92,0.0001726,2]
[350156125,1737659456711,-706.81,0.0001726,2]
[350156126,1737659456721,-186.09646377,0.0001726,2]
[350156127,1737659456731,-500.0,0.0001726,2]
[350156128,1737659456740,-1003.27,0.0001726,2]
[350156129,1737659456751,-151.0,0.0001726,2]
[350156130,1737659456762,-625.99,0.0001726,2]
[350156131,1737659456772,-151.0,0.0001726,2]
[350156132,1737659456782,-570.26,0.0001726,2]
[350156133,1737659456792,-151.0,0.0001726,2]
[350156134,1737659456802,-2144.07,0.0001726,2]
[350156135,1737659456811,-523.31,0.0001726,2]
[350156136,1737659456821,-576.57,0.0001726,2]
[350156137,1737659456830,-151.0,0.0001726,2]
[350156138,1737659456840,-941.99,0.0001726,2]
[350156139,1737659456849,-814.94,0.0001726,2]
[350156140,1737659456859,-151.0,0.0001726,2]
[350156141,1737659456869,-552.46,0.0001726,2]
[350156142,1737659456879,-151.0,0.0001726,2]
[350156143,1737659456888,-500.0,0.0001726,2]
[350156144,1737659456898,-151.0,0.0001726,2]
[350156145,1737659456908,-151.0,0.0001726,2]
[350156146,1737659456918,-1765.72,0.0001726,2]
[350156147,1737659456927,-438.962228,0.0001726,2]
[350156148,1737659456936,-152.12361,0.0001726,2]
[350156149,1737659456946,-500.0,0.0001726,2]
[350156150,1737659456956,-1779.271711,0.0001726,2]
[350156151,1737659456965,-1382.35,0.0001726,2]
[350156152,1737659456975,-151.0,0.0001726,2]
[350156153,1737659456985,-500.0,0.0001726,2]
[350156154,1737659456994,-500.0,0.0001726,2]
[350156155,1737659457005,-764.07,0.0001726,2]
[350156156,1737659457016,-152.085017,0.0001726,2]
[350156157,1737659457026,-663.09,0.0001726,2]
[350156158,1737659457037,-500.0,0.0001726,2]
[350156159,1737659457047,-1685.96,0.0001726,2]
[350156160,1737659457056,-500.0,0.0001726,2]
[350156161,1737659457066,-647.39,0.0001726,2]
[350156162,1737659457075,-400.491439,0.0001726,2]
[350156163,1737659457085,-784.74,0.0001726,2]
[350156164,1737659457095,-400.491439,0.0001726,2]
[350156165,1737659457105,-816.16,0.0001726,2]
[350156166,1737659457114,-500.0,0.0001726,2]
[350156167,1737659457124,-500.0,0.0001726,2]
[350156168,1737659457134,-500.0,0.0001726,2]
[350156169,1737659457143,-504.112179,0.0001726,2]
[350156170,1737659457152,-500.0,0.0001726,2]
[350156171,1737659457162,-500.0,0.0001726,2]
[350156172,1737659457173,-2469.54,0.0001726,2]
[350156173,1737659457182,-500.0,0.0001726,2]
[350156174,1737659457192,-748.67,0.0001726,2]
[350156175,1737659457202,-896.15,0.0001726,2]
[350156176,1737659457211,-993.46,0.0001726,2]
[350156177,1737659457221,-857.28,0.0001726,2]
[350156178,1737659457233,-1315.43,0.0001726,2]
[350156179,1737659457243,-1046.73,0.0001726,2]
[350156180,1737659457254,-151.0,0.0001726,2]
[350156181,1737659457397,-645.04,0.0001726,2]
[350156182,1737659457407,-500.0,0.0001726,2]
[350156183,1737659457418,-1815.73,0.0001726,2]
[350156184,1737659457428,-151.0,0.0001726,2]
[350156185,1737659457438,-500.0,0.0001726,2]
[350156186,1737659457447,-503.15,0.0001726,2]
[350156187,1737659457456,-862.15,0.0001726,2]
[350156188,1737659457466,-500.0,0.0001726,2]
[350156189,1737659457475,-500.0,0.0001726,2]
[350156190,1737659457484,-1898.25,0.0001726,2]
[350156191,1737659457494,-726.91,0.0001726,2]
[350156192,1737659457503,-151.0,0.0001726,2]
[350156193,1737659457513,-500.0,0.0001726,2]
[350156194,1737659457522,-500.0,0.0001726,2]
[350156195,1737659457531,-500.0,0.0001726,2]
[350156196,1737659457541,-500.0,0.0001726,2]
[350156197,1737659457551,-907.74,0.0001726,2]
[350156198,1737659457563,-2176.53,0.0001726,2]
[350156199,1737659457574,-666.87,0.0001726,2]
[350156200,1737659457584,-905.1,0.0001726,2]
[350156201,1737659457596,-2308.47,0.0001726,2]
[350156202,1737659457605,-2228.58,0.0001726,2]
[350156203,1737659457617,-500.0,0.0001726,2]
[350156204,1737659457628,-151.0,0.0001726,2]
[350156205,1737659457638,-500.0,0.0001726,2]
[350156206,1737659457648,-500.0,0.0001726,2]
[350156207,1737659457659,-500.0,0.0001726,2]
[350156208,1737659457669,-901.95,0.0001726,2]
[350156209,1737659457678,-151.0,0.0001726,2]
[350156210,1737659457689,-1916.0,0.0001726,2]
[350156211,1737659457699,-871.22,0.0001726,2]
[350156212,1737659457708,-151.0,0.0001726,2]
[350156213,1737659457718,-500.0,0.0001726,2]
[350156214,1737659457727,-1589.5,0.0001726,2]
[350156215,1737659457735,-1591.14,0.0001726,2]
[350156216,1737659457745,-500.0,0.0001726,2]
[350156217,1737659457754,-500.0,0.0001726,2]
[350156218,1737659457764,-701.06,0.0001726,2]
[350156219,1737659457773,-726.08,0.0001726,2]
[350156220,1737659457782,-1735.27,0.0001726,2]
[350156221,1737659457792,-151.0,0.0001726,2]
[350156222,1737659457802,-916.91,0.0001726,2]
[350156223,1737659457813,-1282.02,0.0001726,2]
[350156224,1737659457823,-4027.0,0.0001726,2]
[350156225,1737659457832,-1895.9,0.0001726,2]
[350156226,1737659457841,-151.0,0.0001726,2]
[350156227,1737659457851,-500.0,0.0001726,2]
[350156228,1737659457861,-1368.39,0.0001726,2]
[350156229,1737659457871,-500.0,0.0001726,2]
[350156230,1737659457881,-500.0,0.0001726,2]
[350156231,1737659457891,-500.0,0.0001726,2]
[350156232,1737659457901,-3765.33,0.0001726,2]
[350156233,1737659457910,-907.71,0.0001726,2]
[350156234,1737659457920,-500.0,0.0001726,2]
[350156235,1737659457930,-500.0,0.0001726,2]
[350156236,1737659457939,-890.41,0.0001726,2]
[350156237,1737659457949,-500.0,0.0001726,2]
[350156238,1737659457959,-500.0,0.0001726,2]
[350156239,1737659457969,-804.17,0.0001726,2]
[350156240,1737659457978,-151.0,0.0001726,2]
[350156241,1737659457988,-717.06,0.0001726,2]
[350156242,1737659457997,-1018.62,0.0001726,2]
[350156243,1737659458006,-151.0,0.0001726,2]
[350156244,1737659458017,-1134.5,0.0001726,2]
[350156245,1737659458026,-500.0,0.0001726,2]
[350156246,1737659458036,-1963.62,0.0001726,2]
[350156247,1737659458045,-618.37,0.0001726,2]
[350156248,1737659458054,-160.409155,0.0001726,2]
[350156249,1737659458063,-500.0,0.0001726,2]
[350156250,1737659458072,-500.0,0.0001726,2]
[350156251,1737659458081,-2352.22,0.0001726,2]
[350156252,1737659458091,-500.0,0.0001726,2]
[350156253,1737659458100,-1719.23,0.0001726,2]
[350156254,1737659458109,-500.0,0.0001726,2]
[350156255,1737659458118,-500.0,0.0001726,2]
[350156256,1737659458128,-222.118011,0.0001726,2]
[350156257,1737659458137,-222.118011,0.0001726,2]
[350156258,1737659458146,-500.0,0.0001726,2]
[350156259,1737659458155,-1152.72,0.0001726,2]
[350156260,1737659458164,-500.0,0.0001726,2]
[350156261,1737659458173,-663.45,0.0001726,2]
[350156262,1737659458182,-500.0,0.0001726,2]
[350156263,1737659458191,-630.47284502,0.0001726,2]
[350156264,1737659458200,-597.02,0.0001726,2]
[350156265,1737659458211,-604.98,0.0001726,2]
[350156266,1737659458220,-500.0,0.0001726,2]
[350156267,1737659458229,-500.0,0.0001726,2]
[350156268,1737659458238,-576.04712896,0.0001726,2]
[350156269,1737659458247,-2176.5,0.0001726,2]
[350156270,1737659458256,-500.0,0.0001726,2]
[350156271,1737659458266,-695.73,0.0001726,2]
[350156272,1737659458275,-3149.47,0.0001726,2]
[350156273,1737659458285,-500.0,0.0001726,2]
[350156274,1737659458294,-1018.19,0.0001726,2]
[350156275,1737659458303,-500.0,0.0001726,2]
[350156276,1737659458313,-1436.45,0.0001726,2]
[350156277,1737659458322,-205.147686,0.0001726,2]
[350156278,1737659458332,-500.0,0.0001726,2]
[350156279,1737659458345,-663.6,0.0001726,2]
[350156280,1737659458354,-500.0,0.0001726,2]
[350156281,1737659458363,-906.61,0.0001726,2]
[350156282,1737659458372,-150.0,0.000173,2]
[350156283,1737659458381,-2151.0,0.00017329,2]
[350156284,1737659458391,-151.0,0.00017334,2]
[350156285,1737659458399,-151.0,0.00017334,2]
[350156286,1737659458409,-151.0,0.00017334,2]
[350156287,1737659458418,-151.0,0.00017334,2]
[350156288,1737659458427,-370.249633,0.00017334,2]
[350156289,1737659458436,-151.0,0.00017334,2]
[350156290,1737659458446,-151.0,0.00017334,2]
[350156291,1737659458455,-151.0,0.00017334,2]
[350156292,1737659458466,-634.041024,0.00017334,2]
[350156293,1737659458475,-634.041024,0.00017334,2]
[350156294,1737659458485,-160.344778,0.00017334,2]
[350156295,1737659458494,-160.344778,0.00017334,2]
[350156296,1737659458503,-151.0,0.00017334,2]
[350156297,1737659458514,-151.0,0.00017334,2]
[350156298,1737659458523,-151.0,0.00017334,2]
[350156299,1737659458532,-151.0,0.00017334,2]
[350156300,1737659458542,-151.0,0.00017334,2]
[350156301,1737659458551,-151.0,0.00017334,2]
[350156302,1737659458559,-151.0,0.00017334,2]
[350156303,1737659458570,-151.0,0.00017334,2]
[350156304,1737659458579,-151.0,0.00017334,2]
[350156305,1737659458590,-206.191318,0.00017334,2]
[350156306,1737659458599,-1779.271711,0.00017334,2]
[350156307,1737659458608,-151.0,0.00017334,2]
[350156308,1737659458617,-400.491439,0.00017334,2]
[350156309,1737659458627,-400.491439,0.00017334,2]
[350156310,1737659458637,-151.0,0.00017334,2]
[350156311,1737659458647,-184.842182,0.00017334,2]
[350156312,1737659458656,-151.0,0.00017334,2]
[350156313,1737659458666,-156.535491,0.00017334,2]
[350156314,1737659458675,-151.0,0.00017334,2]
[350156315,1737659458684,-151.0,0.00017334,2]
[350156316,1737659458693,-151.0,0.00017334,2]
[350156317,1737659458703,-151.0,0.00017334,2]
[350156318,1737659458712,-214.916392,0.00017334,2]
[350156319,1737659458722,-222.118011,0.00017334,2]
[350156320,1737659458731,-222.118011,0.00017334,2]
[350156321,1737659458740,-500.0,0.00017373,2]
[350156322,1737659458751,-160.13815084,0.00017373,2]
[350156323,1737659458761,-500.0,0.00017373,2]
[350156324,1737659458772,-504.530978,0.00017408,2]
[350156325,1737659458782,-504.530978,0.00017408,2]
[350156326,1737659458791,-151.0,0.00017408,2]
[350156327,1737659458801,-282.935206,0.00017408,2]
[350156328,1737659458810,-787.9463407,0.00017417,2]
[350156329,1737659458819,-183.33,0.00017433,2]
[350156330,1737659458829,-150.22,0.0001744,2]
[350156331,1737659458838,-1524.21129733,0.00017471,2]
[350156332,1737659458848,-301.57941926,0.00017473,2]
[350156333,1737659458857,-500.0,0.00017533,2]
[350156334,1737659458866,-1020.76,0.00017533,2]
[350156335,1737659458875,-500.0,0.00017533,2]
[350156336,1737659458885,-871.79,0.00017533,2]
[350156337,1737659458894,-1745.56,0.00017533,2]
[350156338,1737659458904,-3723.73,0.00017533,2]
[350156339,1737659458914,-742.21,0.00017533,2]
[350156340,1737659458924,-779.77,0.00017533,2]
[350156341,1737659458933,-725.66,0.00017533,2]
[350156342,1737659458943,-1457.19,0.00017533,2]
[350156343,1737659458954,-678.42,0.00017533,2]
[350156344,1737659458963,-1002.67,0.00017533,2]
[350156345,1737659458972,-1122.55,0.00017533,2]
[350156346,1737659458981,-1000.0,0.00017533,2]
[350156347,1737659458992,-1033.73,0.00017533,2]
[350156348,1737659459001,-500.0,0.00017533,2]
[350156349,1737659459010,-1827.81,0.00017533,2]
[350156350,1737659459022,-1482.85,0.00017533,2]
[350156351,1737659459031,-32100.0,0.00017534,3]
[350156352,1737659459041,-152.18502,0.00017534,2]
[350156353,1737659459050,-156.3245,0.00017534,2]
[350156354,1737659459059,-151.0,0.00017534,2]
[350156355,1737659459068,-183.84852,0.00017534,2]
[350156356,1737659459077,-151.0,0.00017534,2]
[350156357,1737659459086,-164.139556,0.00017534,2]
[350156358,1737659459095,-164.139556,0.00017534,2]
[350156359,1737659459104,-151.0,0.00017534,2]
[350156360,1737659459113,-151.0,0.00017534,2]
[350156361,1737659459122,-500.0,0.00017534,2]
[350156362,1737659459131,-481.765398,0.00017534,2]
[350156363,1737659459140,-500.0,0.00017534,2]
[350156364,1737659459150,-500.0,0.00017534,2]
[350156365,1737659459159,-500.0,0.00017534,2]
[350156366,1737659459168,-401.970784,0.00017534,2]
[350156367,1737659459177,-401.970784,0.00017534,2]
[350156368,1737659459186,-500.0,0.00017534,2]
[350156369,1737659459196,-500.0,0.00017534,2]
[350156370,1737659459205,-500.0,0.00017534,2]
[350156371,1737659459215,-500.0,0.00017534,2]
[350156372,1737659459225,-500.0,0.00017534,2]
[350156373,1737659459235,-151.0,0.00017534,2]
[350156374,1737659459244,-500.0,0.00017534,2]
[350156375,1737659459254,-151.0,0.00017534,2]
[350156376,1737659459265,-500.0,0.00017534,2]
[350156377,1737659459274,-301.13789037,0.00017534,2]
[350156378,1737659459283,-151.0,0.00017534,2]
[350156379,1737659459292,-500.0,0.00017534,2]
[350156380,1737659459302,-500.0,0.00017534,2]
[350156381,1737659459311,-500.0,0.00017534,2]
[350156382,1737659459320,-587.384009,0.00017534,2]
[350156383,1737659459330,-500.0,0.00017534,2]
[350156384,1737659459345,-587.384009,0.00017534,2]
[350156385,1737659459354,-500.0,0.00017534,2]
[350156386,1737659459364,-151.0,0.00017534,2]
[350156387,1737659459374,-605.96,0.00017534,2]
[350156388,1737659459384,-500.0,0.00017534,2]
[350156389,1737659459393,-416.02129164,0.00017534,2]
[350156390,1737659459402,-535.45263561,0.00017534,2]
[350156391,1737659459413,-500.0,0.00017534,2]
[350156392,1737659459422,-500.0,0.00017534,2]
[350156393,1737659459431,-500.0,0.00017534,2]
[350156394,1737659459441,-340.71955433,0.00017534,2]
[350156395,1737659459450,-297.69785709,0.00017534,2]
[350156396,1737659459459,-500.0,0.00017534,2]
[350156397,1737659459468,-500.0,0.00017534,2]
[350156398,1737659459477,-500.0,0.00017534,2]
[350156399,1737659459491,-500.0,0.00017534,2]
[350156400,1737659459500,-151.0,0.00017534,2]
[350156401,1737659459509,-500.0,0.00017534,2]
[350156402,1737659459521,-637.26,0.00017534,2]
[350156403,1737659459530,-151.0,0.00017534,2]
[350156404,1737659459539,-500.0,0.00017534,2]
[350156405,1737659459548,-500.0,0.00017534,2]
[350156406,1737659459557,-500.0,0.00017534,2]
[350156407,1737659459567,-500.0,0.00017534,2]
[350156408,1737659459576,-500.0,0.00017534,2]
[350156409,1737659459585,-500.0,0.00017534,2]
[350156410,1737659459594,-500.0,0.00017534,2]
[350156411,1737659459603,-214.59038134,0.00017534,2]
[350156412,1737659459612,-500.0,0.00017534,2]
[350156413,1737659459622,-500.0,0.00017534,2]
[350156414,1737659459631,-504.530978,0.00017534,2]
[350156415,1737659459639,-500.0,0.00017534,2]
[350156416,1737659459649,-504.530978,0.00017534,2]
[350156417,1737659459658,-500.0,0.00017534,2]
[350156418,1737659459667,-500.0,0.00017534,2]
[350156419,1737659459677,-151.0,0.00017534,2]
[350156420,1737659459686,-500.0,0.00017534,2]
[350156421,1737659459695,-500.0,0.00017534,2]
[350156422,1737659459704,-514.56043483,0.00017534,2]
[350156423,1737659459714,-500.0,0.00017534,2]
[350156424,1737659459722,-500.0,0.00017534,2]
[350156425,1737659459732,-500.0,0.00017534,2]
[350156426,1737659459742,-500.0,0.00017534,2]
[350156427,1737659459751,-500.0,0.00017534,2]
[350156428,1737659459759,-500.0,0.00017534,2]
[350156429,1737659459771,-500.0,0.00017534,2]
[350156430,1737659459780,-500.0,0.00017534,2]
[350156431,1737659459789,-500.0,0.00017534,2]
[350156432,1737659459798,-500.0,0.00017534,2]
[350156433,1737659459808,-500.0,0.00017534,2]
[350156434,1737659459817,-151.0,0.00017534,2]
[350156435,1737659459826,-500.0,0.00017534,2]
[350156436,1737659459835,-370.249633,0.00017534,2]
[350156437,1737659459845,-500.0,0.00017534,2]
[350156438,1737659459854,-151.0,0.00017534,2]
[350156439,1737659459863,-500.0,0.00017534,2]
[350156440,1737659459874,-500.0,0.00017534,2]
[350156441,1737659459883,-500.0,0.00017534,2]
[350156442,1737659459891,-500.0,0.00017534,2]
[350156443,1737659459904,-500.0,0.00017534,2]
[350156444,1737659459916,-161.384161,0.00017534,2]
[350156445,1737659459926,-500.0,0.00017534,2]
[350156446,1737659459935,-634.041024,0.00017534,2]
[350156447,1737659459945,-634.041024,0.00017534,2]
[350156448,1737659459955,-160.344778,0.00017534,2]
[350156449,1737659459964,-500.0,0.00017534,2]
[350156450,1737659459973,-160.344778,0.00017534,2]
[350156451,1737659459983,-500.0,0.00017534,2]
[350156452,1737659459992,-500.0,0.00017534,2]
[350156453,1737659460001,-500.0,0.00017534,2]
[350156454,1737659460011,-500.0,0.00017534,2]
[350156455,1737659460023,-500.0,0.00017534,2]
[350156456,1737659460033,-500.0,0.00017534,2]
[350156457,1737659460043,-500.0,0.00017534,2]
[350156458,1737659460053,-500.0,0.00017534,2]
[350156459,1737659460063,-500.0,0.00017534,2]
[350156460,1737659460073,-500.0,0.00017534,2]
[350156461,1737659460083,-500.0,0.00017534,2]
[350156462,1737659460093,-333.73166821,0.00017534,2]
[350156463,1737659460103,-500.0,0.00017534,2]
[350156464,1737659460112,-500.0,0.00017534,2]
[350156465,1737659460121,-500.0,0.00017534,2]
[350156466,1737659460131,-500.0,0.00017534,2]
[350156467,1737659460139,-500.0,0.00017534,2]
[350156468,1737659460148,-500.0,0.00017534,2]
[350156469,1737659460158,-173.626803,0.00017534,2]
[350156470,1737659460167,-500.0,0.00017534,2]
[350156471,1737659460176,-500.0,0.00017534,2]
[350156472,1737659460186,-266.590664,0.00017534,2]
[350156473,1737659460195,-500.0,0.00017534,2]
[350156474,1737659460204,-500.0,0.00017534,2]
[350156475,1737659460214,-500.0,0.00017534,2]
[350156476,1737659460223,-500.0,0.00017534,2]
[350156477,1737659460232,-500.0,0.00017534,2]
[350156478,1737659460242,-610.92,0.00017534,2]
[350156479,1737659460251,-706.81,0.00017534,2]
[350156480,1737659460260,-500.0,0.00017534,2]
[350156481,1737659460271,-1003.27,0.00017534,2]
[350156482,1737659460280,-158.015681,0.00017534,2]
[350156483,1737659460290,-625.99,0.00017534,2]
[350156484,1737659460299,-151.0,0.00017534,2]
[350156485,1737659460309,-570.26,0.00017534,2]
[350156486,1737659460318,-151.0,0.00017534,2]
[350156487,1737659460327,-2144.07,0.00017534,2]
[350156488,1737659460338,-523.31,0.00017534,2]
[350156489,1737659460352,-576.57,0.00017534,2]
[350156490,1737659460362,-151.0,0.00017534,2]
[350156491,1737659460371,-941.99,0.00017534,2]
[350156492,1737659460380,-814.94,0.00017534,2]
[350156493,1737659460389,-552.46,0.00017534,2]
[350156494,1737659460398,-151.0,0.00017534,2]
[350156495,1737659460408,-151.0,0.00017534,2]
[350156496,1737659460417,-500.0,0.00017534,2]
[350156497,1737659460427,-151.0,0.00017534,2]
[350156498,1737659460436,-1765.72,0.00017534,2]
[350156499,1737659460445,-438.962228,0.00017534,2]
[350156500,1737659460455,-500.0,0.00017534,2]
[350156501,1737659460464,-1382.35,0.00017534,2]
[350156502,1737659460473,-1779.271711,0.00017534,2]
[350156503,1737659460482,-151.0,0.00017534,2]
[350156504,1737659460621,-500.0,0.00017534,2]
[350156505,1737659460630,-500.0,0.00017534,2]
[350156506,1737659460640,-764.07,0.00017534,2]
[350156507,1737659460650,-663.09,0.00017534,2]
[350156508,1737659460659,-500.0,0.00017534,2]
[350156509,1737659460669,-1685.96,0.00017534,2]
[350156510,1737659460679,-647.39,0.00017534,2]
[350156511,1737659460688,-400.491439,0.00017534,2]
[350156512,1737659460697,-784.74,0.00017534,2]
[350156513,1737659460707,-400.491439,0.00017534,2]
[350156514,1737659460717,-816.16,0.00017534,2]
[350156515,1737659460726,-500.0,0.00017534,2]
[350156516,1737659460736,-500.0,0.00017534,2]
[350156517,1737659460746,-504.112179,0.00017534,2]
[350156518,1737659460756,-500.0,0.00017534,2]
[350156519,1737659460769,-500.0,0.00017534,2]
[350156520,1737659460779,-2469.54,0.00017534,2]
[350156521,1737659460788,-748.67,0.00017534,2]
[350156522,1737659460798,-500.0,0.00017534,2]
[350156523,1737659460807,-896.15,0.00017534,2]
[350156524,1737659460816,-993.46,0.00017534,2]
[350156525,1737659460826,-857.28,0.00017534,2]
[350156526,1737659460835,-1315.43,0.00017534,2]
[350156527,1737659460846,-1046.73,0.00017534,2]
[350156528,1737659460856,-151.0,0.00017534,2]
[350156529,1737659460866,-645.04,0.00017534,2]
[350156530,1737659460876,-500.0,0.00017534,2]
[350156531,1737659460886,-1815.73,0.00017534,2]
[350156532,1737659460895,-500.0,0.00017534,2]
[350156533,1737659460906,-503.15,0.00017534,2]
[350156534,1737659460918,-862.15,0.00017534,2]
[350156535,1737659460928,-500.0,0.00017534,2]
[350156536,1737659460939,-500.0,0.00017534,2]
[350156537,1737659460948,-1898.25,0.00017534,2]
[350156538,1737659460958,-726.91,0.00017534,2]
[350156539,1737659460967,-151.0,0.00017534,2]
[350156540,1737659460977,-500.0,0.00017534,2]
[350156541,1737659460987,-500.0,0.00017534,2]
[350156542,1737659460996,-500.0,0.00017534,2]
[350156543,1737659461007,-2176.53,0.00017534,2]
[350156544,1737659461020,-907.74,0.00017534,2]
[350156545,1737659461030,-666.87,0.00017534,2]
[350156546,1737659461040,-905.1,0.00017534,2]
[350156547,1737659461049,-2308.47,0.00017534,2]
[350156548,1737659461059,-2228.58,0.00017534,2]
[350156549,1737659461070,-500.0,0.00017534,2]
[350156550,1737659461080,-500.0,0.00017534,2]
[350156551,1737659461090,-500.0,0.00017534,2]
[350156552,1737659461101,-500.0,0.00017534,2]
[350156553,1737659461110,-901.95,0.00017534,2]
[350156554,1737659461120,-151.0,0.00017534,2]
[350156555,1737659461130,-1916.0,0.00017534,2]
[350156556,1737659461140,-871.22,0.00017534,2]
[350156557,1737659461151,-151.0,0.00017534,2]
[350156558,1737659461161,-1589.5,0.00017534,2]
[350156559,1737659461170,-1591.14,0.00017534,2]